[Event "Czech Youth U14 Girls 2024"]
[Site "Kouty nad Desnou"]
[Date "2024.03.12"]
[Round "5.3"]
[White "Nova, Doubravka Anezka"]
[Black "Slivova, Linda"]
[Result "1/2-1/2"]
[ECO "C24"]
[WhiteElo "1718"]
[BlackElo "1824"]
[Annotator "NA RC"]
[PlyCount "98"]
[EventDate "2024.03.10"]
[EventType "swiss"]
[EventCountry "CZE"]
[SourceTitle "playchess.com"]
[Source "ChessBase"]
[SourceQuality "1"]
[TimeControl "40/5400+30:1800+30"]

1. e4 {[%emt 0:00:01]} e5 {[%emt 0:00:06]} 2. Bc4 {[%emt 0:00:48]} Nf6 {[%emt 0:00:53]} 3. d4 {[%emt 0:00:11]} exd4 {[%emt 0:18:08]} 4. Nf3 {[%emt 0:00:14]} Nxe4 {[%emt 0:03:37]} 5. Qxd4 {[%emt 0:01:52]} Nf6 {[%emt 0:02:18]} 6. Bg5 {[%emt 0:01:40]} Be7 {[%emt 0:01:58]} 7. Nc3 {[%emt 0:01:07]} Nc6 {[%emt 0:01:06]} 8. Qh4 {[%emt 0:01:30]} d6 {[%emt 0:05:12] C24: Bishop's Opening: 2...Nf6.} 9. O-O-O {[%emt 0:01:46]} Bf5 {[%emt 0:02:33]} 10. Kb1 {[%emt 0:06:25]} (10. Rhe1 $142 O-O 11. g4) 10... a6 {[%emt 0:04:54]} (10... O-O {ist eher angebracht.}) 11. Rhe1 {[%emt 0:04:26]} O-O {[%emt 0:00:38]} 12. Bd3 {[%emt 0:09:22]} Bxd3 {[%emt 0:07:09]} 13. Rxd3 {[%emt 0:00:55]} Qd7 {[%emt 0:12:34]} 14. Nd2 $2 {[%emt 0:14:04]} (14. Rxe7 $1 $14 {keeps the upper hand.} Nxe7 (14... Qxe7 15. Re3 $16) 15. Bxf6) 14... Rae8 {[%emt 0:15:23]} 15. Rg3 {[%emt 0:09:09]} Bd8 {[%emt 0:01:41]} 16. Nde4 {[%emt 0:14:55]} Nxe4 {[%emt 0:01:09]} 17. Nxe4 $4 {[%emt 0:02:56]} (17. Rxe4 $17 f6 18. Rxe8 Rxe8 19. Bc1) 17... Ne5 $2 {[%emt 0:04:59]} (17... f5 $19 18. Bxd8 Nxd8 (18... Rxe4 $2 19. Rxe4 fxe4 20. Bg5 $17)) 18. Bxd8 {[%emt 0:13:55]} Ng6 {[%emt 0:01:06] [#]} 19. Bf6 $1 {[%emt 0:05:07]} d5 {[%emt 0:07:57] [#]} 20. Rd1 $1 {[%emt 0:01:06]} Qf5 {[%emt 0:02:54]} 21. Qg5 {[%emt 0:05:36]} Qxe4 {[%emt 0:01:45]} 22. Bc3 {[%emt 0:00:15]} c6 {[%emt 0:02:31]} 23. Re3 {[%emt 0:00:34]} Qh4 {[%emt 0:00:32]} 24. Qxh4 {[%emt 0:00:34]} Nxh4 {[%emt 0:00:06]} 25. Rh3 {[%emt 0:01:24]} Ng6 {[%emt 0:01:15]} 26. Bb4 {[%emt 0:00:09]} Nf4 {[%emt 0:00:30]} 27. Rf3 {[%emt 0:00:39]} Re4 {[%emt 0:00:27]} 28. Bxf8 {[%emt 0:00:11]} Kxf8 {[%emt 0:00:05]} 29. g3 {[%emt 0:00:23]} Ne6 {[%emt 0:00:58]} 30. Kc1 {[%emt 0:00:41]} Re2 {[%emt 0:00:18]} 31. Rf1 {[%emt 0:00:45]} Nd4 {[%emt 0:00:14]} 32. Rd3 {[%emt 0:01:12]} Nb5 {[%emt 0:00:56]} 33. Kd1 {[%emt 0:00:18]} Re4 {[%emt 0:00:24]} 34. h4 {[%emt 0:00:17]} Ra4 {[%emt 0:00:34]} 35. a3 {[%emt 0:00:12]} Re4 {[%emt 0:00:10]} 36. Re1 {[%emt 0:00:20]} f5 {[%emt 0:00:19]} 37. Rxe4 {[%emt 0:00:31]} fxe4 {[%emt 0:00:08]} 38. Rb3 {[%emt 0:00:16]} Nd6 {[%emt 0:00:31]} 39. Ke2 {[%emt 0:00:32]} a5 {[%emt 0:00:20]} 40. f3 {[%emt 0:00:21]} Nb5 {[%emt 0:00:37] [#]} 41. Rxb5 $2 {[%emt 0:31:31]} cxb5 {[%emt 0:05:52]} 42. fxe4 {[%emt 0:00:00]} dxe4 {[%emt 0:03:23]} 43. Ke3 {[%emt 0:00:00]} Ke7 {[%emt 0:00:21]} 44. Kxe4 {[%emt 0:00:00]} Ke6 {[%emt 0:00:16]} 45. g4 {[%emt 0:00:00]} g6 {[%emt 0:05:55]} 46. g5 {[%emt 0:00:00]} Kd6 {[%emt 0:01:55]} 47. Kd4 {[%emt 0:00:00]} b6 $11 {[%emt 0:01:29]} 48. b3 {[%emt 0:00:00]} Ke6 {[%emt 0:08:15]} 49. Ke4 {[%emt 0:00:00]} Kd6 {[%emt 0:00:52]} 1/2-1/2

[Event "Czech Youth U14 Girls 2024"]
[Site "Kouty nad Desnou"]
[Date "2024.03.12"]
[Round "5.4"]
[White "Kubatova, Beta"]
[Black "Kubatova, Ema"]
[Result "1/2-1/2"]
[ECO "E32"]
[WhiteElo "1666"]
[BlackElo "1580"]
[Annotator "NA RC"]
[PlyCount "86"]
[EventDate "2024.03.10"]
[EventType "swiss"]
[EventCountry "CZE"]
[SourceTitle "playchess.com"]
[Source "ChessBase"]
[SourceQuality "1"]
[TimeControl "40/5400+30:1800+30"]

1. d4 {[%emt 0:00:04]} Nf6 {[%emt 0:00:11]} 2. c4 {[%emt 0:00:09]} e6 {[%emt 0:00:09]} 3. Nc3 {[%emt 0:00:10]} Bb4 {[%emt 0:00:18]} 4. Qc2 {[%emt 0:03:21]} b6 {[%emt 0:02:42]} 5. Bg5 {[%emt 0:01:40]} Bb7 {[%emt 0:02:26]} 6. e3 {[%emt 0:09:07]} Bxc3+ {[%emt 0:10:00]} 7. bxc3 {[%emt 0:05:34]} d6 {[%emt 0:09:24]} 8. f3 {[%emt 0:04:06]} Nbd7 {[%emt 0:18:29]} 9. Bd3 {[%emt 0:04:37]} h6 {[%emt 0:07:06]} 10. Bh4 {[%emt 0:01:05]} c5 {[%emt 0:00:15]} 11. Ne2 {[%emt 0:05:03]} Qc7 {[%emt 0:01:49]} 12. Qb3 {[%emt 0:10:43]} O-O {[%emt 0:04:55]} 13. O-O {[%emt 0:01:24]} Rac8 {[%emt 0:00:30]} 14. Rac1 {[%emt 0:05:06]} d5 {[%emt 0:04:04]} 15. Qd1 {[%emt 0:04:11]} Ba6 {[%emt 0:01:42]} 16. cxd5 {[%emt 0:03:40]} Bxd3 {[%emt 0:00:40]} 17. Qxd3 {[%emt 0:00:12]} Nxd5 {[%emt 0:00:44]} 18. Bg3 {[%emt 0:02:25]} Qb7 {[%emt 0:01:04]} 19. c4 {[%emt 0:02:32]} N5f6 {[%emt 0:04:21]} 20. Rfd1 {[%emt 0:03:58]} cxd4 {[%emt 0:05:21]} 21. Qxd4 {[%emt 0:07:53]} Nc5 {[%emt 0:03:15]} 22. Qb2 {[%emt 0:08:14]} Rfd8 {[%emt 0:02:34]} 23. Qc2 {[%emt 0:04:11]} Rd7 {[%emt 0:08:05]} 24. Rxd7 {[%emt 0:04:10]} Ncxd7 {[%emt 0:02:00]} 25. Qb2 {[%emt 0:02:25]} Qc6 {[%emt 0:02:08]} 26. Nd4 {[%emt 0:01:12]} Qc5 {[%emt 0:01:08]} 27. Qd2 {[%emt 0:00:52]} Ne5 {[%emt 0:02:19]} 28. Bxe5 {[%emt 0:01:26]} Qxe5 {[%emt 0:00:20]} 29. Nb3 {[%emt 0:00:39]} Qc7 {[%emt 0:02:11]} 30. c5 {[%emt 0:01:21]} bxc5 {[%emt 0:01:34]} 31. Rxc5 {[%emt 0:00:15]} Qb7 {[%emt 0:01:36]} 32. Rxc8+ {[%emt 0:01:44]} Qxc8 {[%emt 0:00:04]} 33. Nd4 {[%emt 0:00:29]} Nd5 {[%emt 0:00:30]} 34. Kf2 {[%emt 0:01:04]} Qb8 {[%emt 0:01:13]} 35. h3 {[%emt 0:00:57]} Qb6 {[%emt 0:01:03]} 36. Nb3 {[%emt 0:01:15]} Qb4 {[%emt 0:01:22]} 37. Qxb4 {[%emt 0:01:00]} Nxb4 {[%emt 0:00:01]} 38. a4 {[%emt 0:00:12]} Kf8 {[%emt 0:00:21]} 39. Ke2 {[%emt 0:00:30]} Ke7 {[%emt 0:00:17]} 40. Kd2 {[%emt 0:00:16]} Kd6 {[%emt 0:00:27]} 41. Kc3 {[%emt 0:31:05]} Nd5+ {[%emt 0:31:11]} 42. Kd2 {[%emt 0:00:00]} Kc6 {[%emt 0:00:00]} 43. Kd3 {[%emt 0:00:00]} Nb6 {[%emt 0:00:00]} 1/2-1/2

[Event "Czech Youth U14 Girls 2024"]
[Site "Kouty nad Desnou"]
[Date "2024.03.12"]
[Round "5.5"]
[White "Kammova, Katerina"]
[Black "Hladka, Leontyna"]
[Result "1-0"]
[ECO "E10"]
[WhiteElo "1781"]
[BlackElo "1683"]
[Annotator "NA RC"]
[PlyCount "162"]
[EventDate "2024.03.10"]
[EventType "swiss"]
[EventCountry "CZE"]
[SourceTitle "playchess.com"]
[Source "ChessBase"]
[SourceQuality "1"]
[TimeControl "40/5400+30:1800+30"]

1. d4 {[%emt 0:00:12]} Nf6 {[%emt 0:00:06]} 2. c4 {[%emt 0:00:22]} e6 {[%emt 0:00:05]} 3. Nf3 {[%emt 0:00:32]} d5 {[%emt 0:01:18]} 4. g3 {[%emt 0:04:49]} Bb4+ {[%emt 0:02:29]} 5. Bd2 {[%emt 0:03:17]} Bxd2+ {[%emt 0:02:07]} 6. Nbxd2 {[%emt 0:01:17]} O-O {[%emt 0:01:08]} 7. Bg2 {[%emt 0:00:56]} Nbd7 {[%emt 0:01:19]} 8. O-O {[%emt 0:04:10]} c5 {[%emt 0:02:32]} 9. cxd5 {[%emt 0:13:14]} exd5 {[%emt 0:00:29]} 10. dxc5 {[%emt 0:01:10]} Nxc5 {[%emt 0:00:16]} 11. Nb3 {[%emt 0:01:34]} Qb6 {[%emt 0:04:09]} 12. Nfd4 {[%emt 0:05:47]} Nxb3 {[%emt 0:03:30]} 13. Nxb3 {[%emt 0:01:15]} Rd8 {[%emt 0:02:32]} 14. Qd4 {[%emt 0:06:05]} Qxd4 {[%emt 0:03:17]} 15. Nxd4 {[%emt 0:00:21]} Be6 {[%emt 0:01:39]} 16. Rac1 {[%emt 0:02:02]} Rac8 {[%emt 0:00:35]} 17. Rfd1 {[%emt 0:02:07]} a6 {[%emt 0:02:34]} 18. f3 {[%emt 0:02:50]} Rc4 {[%emt 0:04:04]} 19. Nxe6 {[%emt 0:05:45]} Rxc1 {[%emt 0:01:08]} 20. Rxc1 {[%emt 0:00:34]} fxe6 {[%emt 0:00:08]} 21. Bh3 {[%emt 0:01:55]} Kf7 {[%emt 0:00:28]} 22. e3 {[%emt 0:00:34]} g5 {[%emt 0:02:34]} 23. Kf2 {[%emt 0:03:24]} Rd6 {[%emt 0:03:36]} 24. b4 {[%emt 0:05:08]} Ke7 {[%emt 0:05:01]} 25. Ke2 {[%emt 0:01:03]} Kd7 {[%emt 0:04:54]} 26. Kd2 {[%emt 0:04:28]} Kd8 {[%emt 0:02:20]} 27. a3 {[%emt 0:02:23]} Ne8 {[%emt 0:06:32]} 28. Kd3 {[%emt 0:07:57]} Nc7 {[%emt 0:04:05]} 29. a4 {[%emt 0:02:20]} Rb6 {[%emt 0:01:39]} 30. Kc3 {[%emt 0:02:22]} Rc6+ {[%emt 0:01:33]} 31. Kb2 {[%emt 0:00:47]} Rb6 {[%emt 0:02:16]} 32. Kb3 {[%emt 0:01:37]} Rd6 {[%emt 0:01:37]} 33. Rc2 {[%emt 0:02:28]} h6 {[%emt 0:03:53]} 34. Rc1 {[%emt 0:01:42]} Rb6 {[%emt 0:01:22]} 35. Rd1 {[%emt 0:04:58]} Ke7 {[%emt 0:01:28]} 36. Rc1 {[%emt 0:00:58]} Kd8 {[%emt 0:00:15]} 37. Rc3 {[%emt 0:03:29]} Rd6 {[%emt 0:00:43]} 38. Bg4 {[%emt 0:01:26]} Rd7 {[%emt 0:03:55]} 39. Rd3 {[%emt 0:01:10]} Ke7 {[%emt 0:01:50]} 40. f4 {[%emt 0:00:36]} gxf4 {[%emt 0:00:51]} 41. exf4 {[%emt 0:30:30]} Kf6 {[%emt 0:31:20]} 42. Kc3 {[%emt 0:01:11]} Rg7 {[%emt 0:02:18]} 43. Bf3 {[%emt 0:00:00]} Ne8 {[%emt 0:00:00]} 44. Kd4 {[%emt 0:00:00]} Kf5 {[%emt 0:00:00]} 45. Re3 {[%emt 0:00:00]} Nd6 {[%emt 0:00:00]} 46. Be2 {[%emt 0:00:00]} Kf6 {[%emt 0:00:00]} 47. Rc3 {[%emt 0:00:00]} Nf5+ {[%emt 0:00:00]} 48. Kd3 {[%emt 0:00:00]} Nd6 {[%emt 0:00:00]} 49. Ke3 {[%emt 0:00:00]} Nf5+ {[%emt 0:00:00]} 50. Kf2 {[%emt 0:00:00]} Nd4 {[%emt 0:02:21]} 51. Bd1 {[%emt 0:00:00]} Nf5 {[%emt 0:05:29]} 52. Bf3 {[%emt 0:00:00]} Nd4 {[%emt 0:01:04]} 53. Bg2 {[%emt 0:00:00]} Nf5 {[%emt 0:00:50]} 54. b5 {[%emt 0:00:00]} axb5 {[%emt 0:00:36]} 55. axb5 {[%emt 0:00:00]} Nd6 {[%emt 0:00:38]} 56. Rc5 {[%emt 0:00:00]} b6 {[%emt 0:01:21]} 57. Rc6 {[%emt 0:00:00]} Nxb5 {[%emt 0:00:07]} 58. Bxd5 {[%emt 0:02:28]} Nc7 {[%emt 0:01:53]} 59. Bb3 {[%emt 0:00:33]} b5 {[%emt 0:02:18]} 60. Ke3 {[%emt 0:00:50]} Re7 {[%emt 0:00:43]} 61. Kd4 {[%emt 0:01:37]} Kf5 {[%emt 0:00:46]} 62. h3 {[%emt 0:00:41]} Rg7 {[%emt 0:02:04]} 63. Bc2+ {[%emt 0:00:12]} Kf6 {[%emt 0:00:10]} 64. g4 {[%emt 0:00:19]} Rd7+ {[%emt 0:01:06]} 65. Kc5 {[%emt 0:00:34]} Kg7 {[%emt 0:03:42]} 66. Bb3 {[%emt 0:01:50]} Kf8 {[%emt 0:03:41]} 67. Bxe6 {[%emt 0:00:46]} Nxe6+ {[%emt 0:00:19]} 68. Rxe6 {[%emt 0:00:03]} Kg7 {[%emt 0:00:30]} 69. Re3 {[%emt 0:01:31]} Rf7 {[%emt 0:01:09]} 70. f5 {[%emt 0:00:44]} h5 {[%emt 0:00:39]} 71. Kxb5 {[%emt 0:00:20]} hxg4 {[%emt 0:00:10]} 72. hxg4 {[%emt 0:00:06]} Kf6 {[%emt 0:00:26]} 73. Re6+ {[%emt 0:00:33]} Kg5 {[%emt 0:00:16]} 74. Rg6+ {[%emt 0:00:08]} Kf4 {[%emt 0:00:07]} 75. Kc5 {[%emt 0:00:41]} Ke5 {[%emt 0:00:21]} 76. Kb6 {[%emt 0:01:54]} Kf4 {[%emt 0:00:26]} 77. f6 {[%emt 0:00:58]} Ke5 {[%emt 0:00:35]} 78. g5 {[%emt 0:00:13]} Kf5 {[%emt 0:00:09]} 79. Rg7 {[%emt 0:00:16]} Rf8 {[%emt 0:00:21]} 80. f7 {[%emt 0:00:42]} Ke6 {[%emt 0:00:26]} 81. g6 {[%emt 0:00:06]} Kd5 1-0

[Event "Czech Youth U14 Girls 2024"]
[Site "Kouty nad Desnou"]
[Date "2024.03.12"]
[Round "5.6"]
[White "Krisicova, Neli"]
[Black "Barteckova, Valerie"]
[Result "1/2-1/2"]
[ECO "B13"]
[WhiteElo "1556"]
[BlackElo "1687"]
[Annotator "NA RC"]
[PlyCount "66"]
[EventDate "2024.03.10"]
[EventType "swiss"]
[EventCountry "CZE"]
[SourceTitle "playchess.com"]
[Source "ChessBase"]
[SourceQuality "1"]
[TimeControl "40/5400+30:1800+30"]

1. e4 {[%emt 0:00:10]} c6 {[%emt 0:00:11]} 2. d4 {[%emt 0:00:36]} d5 {[%emt 0:00:08]} 3. exd5 {[%emt 0:00:31]} cxd5 {[%emt 0:00:07]} 4. Bd3 {[%emt 0:01:12]} Nc6 {[%emt 0:00:25]} 5. c3 {[%emt 0:01:12]} Qc7 {[%emt 0:01:08]} 6. Nf3 {[%emt 0:04:07]} Bg4 {[%emt 0:05:33]} 7. O-O {[%emt 0:03:05]} e6 {[%emt 0:01:47]} 8. h3 {[%emt 0:01:53]} Bh5 {[%emt 0:00:21]} 9. Be3 {[%emt 0:03:52]} Nf6 {[%emt 0:03:06]} 10. Nbd2 {[%emt 0:01:23]} Bd6 {[%emt 0:02:07]} 11. Qb3 {[%emt 0:02:22]} O-O {[%emt 0:01:57]} 12. Rae1 {[%emt 0:03:42]} Bg6 {[%emt 0:18:08]} 13. Bxg6 {[%emt 0:06:45]} hxg6 {[%emt 0:00:09]} 14. Bg5 {[%emt 0:03:09]} Rac8 {[%emt 0:03:13]} 15. Re3 {[%emt 0:04:38]} Nh7 {[%emt 0:04:38]} 16. Bh4 {[%emt 0:01:12]} Bf4 {[%emt 0:14:17]} 17. Rd3 {[%emt 0:10:04]} Rb8 {[%emt 0:06:22]} 18. Qd1 {[%emt 0:09:14]} g5 {[%emt 0:02:00]} 19. Bg3 {[%emt 0:01:11]} Bxg3 {[%emt 0:02:00]} 20. fxg3 {[%emt 0:00:13]} Qb6 {[%emt 0:04:35]} 21. Qb3 {[%emt 0:04:09]} Qa6 {[%emt 0:02:27]} 22. Re3 {[%emt 0:04:28]} b5 {[%emt 0:00:38]} 23. a3 {[%emt 0:01:28]} Qb6 {[%emt 0:01:45]} 24. Ne5 {[%emt 0:02:54]} Nxe5 {[%emt 0:03:32]} 25. Rxe5 {[%emt 0:00:09]} a5 {[%emt 0:00:34]} 26. Nf3 {[%emt 0:04:43]} g4 {[%emt 0:01:41]} 27. Ng5 {[%emt 0:05:02]} Nxg5 {[%emt 0:01:34]} 28. Rxg5 {[%emt 0:00:09]} gxh3 {[%emt 0:00:50]} 29. gxh3 {[%emt 0:00:11]} b4 {[%emt 0:00:42]} 30. axb4 {[%emt 0:02:29]} axb4 {[%emt 0:00:08]} 31. Qc2 {[%emt 0:04:26]} bxc3 {[%emt 0:00:29]} 32. bxc3 {[%emt 0:00:11]} Rbc8 {[%emt 0:01:21]} 33. Qd2 {[%emt 0:02:19]} Qd8 1/2-1/2

[Event "Czech Youth U14 Girls 2024"]
[Site "Kouty nad Desnou"]
[Date "2024.03.12"]
[Round "5.7"]
[White "Mojzisova, Barbora"]
[Black "Nguyen Nhat, Minh Thu"]
[Result "1/2-1/2"]
[ECO "B92"]
[WhiteElo "1623"]
[BlackElo "1563"]
[Annotator "NA RC"]
[PlyCount "82"]
[EventDate "2024.03.10"]
[EventType "swiss"]
[EventCountry "CZE"]
[SourceTitle "playchess.com"]
[Source "ChessBase"]
[SourceQuality "1"]
[TimeControl "40/5400+30:1800+30"]

1. e4 {[%emt 0:00:01]} c5 {[%emt 0:00:09]} 2. Nf3 {[%emt 0:00:08]} d6 {[%emt 0:00:09]} 3. d4 {[%emt 0:00:09]} cxd4 {[%emt 0:00:07]} 4. Nxd4 {[%emt 0:00:05]} Nf6 {[%emt 0:00:07]} 5. Nc3 {[%emt 0:00:26]} a6 {[%emt 0:00:30]} 6. Be2 {[%emt 0:00:28]} e5 {[%emt 0:00:46]} 7. Nb3 {[%emt 0:00:20]} Be7 {[%emt 0:00:28]} 8. Be3 {[%emt 0:00:46]} Be6 {[%emt 0:06:28]} 9. Nd5 {[%emt 0:02:13]} Nbd7 {[%emt 0:05:29]} 10. f3 {[%emt 0:06:39]} Bxd5 {[%emt 0:17:50]} 11. exd5 {[%emt 0:00:40]} b5 {[%emt 0:02:05]} 12. Qd2 {[%emt 0:05:53]} Nb6 {[%emt 0:02:54]} 13. Bxb6 {[%emt 0:01:46]} Qxb6 {[%emt 0:00:21]} 14. Bd3 {[%emt 0:11:11]} O-O {[%emt 0:30:16]} 15. Qf2 {[%emt 0:03:58]} Qxf2+ {[%emt 0:00:26]} 16. Kxf2 {[%emt 0:00:12]} Rac8 {[%emt 0:00:05]} 17. c3 {[%emt 0:04:35]} Nxd5 {[%emt 0:03:38]} 18. Be4 {[%emt 0:00:42]} Nc7 {[%emt 0:00:28]} 19. Bb7 {[%emt 0:00:55]} Rb8 {[%emt 0:00:18]} 20. Na5 {[%emt 0:01:01]} d5 {[%emt 0:02:05]} 21. b4 {[%emt 0:03:46]} f5 {[%emt 0:11:05]} 22. Rad1 {[%emt 0:03:01]} d4 {[%emt 0:02:59]} 23. Nc6 {[%emt 0:03:01]} Bh4+ {[%emt 0:01:25]} 24. g3 {[%emt 0:00:44]} Bxg3+ {[%emt 0:00:28]} 25. hxg3 {[%emt 0:00:18]} Rxb7 {[%emt 0:00:09]} 26. cxd4 {[%emt 0:00:35]} exd4 {[%emt 0:00:31]} 27. Rxd4 {[%emt 0:01:15]} Ne6 {[%emt 0:01:47]} 28. Rd6 {[%emt 0:01:06]} Re8 {[%emt 0:01:59]} 29. Re1 {[%emt 0:03:11]} Nc7 {[%emt 0:07:51]} 30. Rxe8+ {[%emt 0:03:42]} Nxe8 31. Re6 {[%emt 0:01:48]} Nf6 {[%emt 0:01:39]} 32. Nd4 {[%emt 0:01:51]} Rd7 {[%emt 0:00:40]} 33. Nxf5 {[%emt 0:01:28]} Rd2+ {[%emt 0:00:12]} 34. Re2 {[%emt 0:00:21]} Rxe2+ {[%emt 0:00:08]} 35. Kxe2 {[%emt 0:00:41]} Nd5 {[%emt 0:00:04]} 36. a3 {[%emt 0:01:39]} Nc3+ {[%emt 0:00:41]} 37. Kd3 {[%emt 0:00:21]} Nb1 {[%emt 0:00:21]} 38. Ne7+ {[%emt 0:00:28]} Kf7 {[%emt 0:00:09]} 39. Nd5 {[%emt 0:00:51]} Nxa3 {[%emt 0:01:30]} 40. Nc7 {[%emt 0:00:24]} Ke7 {[%emt 0:00:39]} 41. Nxa6 {[%emt 0:30:22]} Kd6 {[%emt 0:30:27]} 1/2-1/2

[Event "Czech Youth U14 Girls 2024"]
[Site "Kouty nad Desnou"]
[Date "2024.03.12"]
[Round "5.8"]
[White "Kratka, Tereza"]
[Black "Barteckova, Nikol"]
[Result "0-1"]
[ECO "A20"]
[WhiteElo "1477"]
[BlackElo "1612"]
[Annotator "NA RC"]
[PlyCount "64"]
[EventDate "2024.03.10"]
[EventType "swiss"]
[EventCountry "CZE"]
[SourceTitle "playchess.com"]
[Source "ChessBase"]
[SourceQuality "1"]
[TimeControl "40/5400+30:1800+30"]

1. c4 {[%emt 0:00:09]} e5 {[%emt 0:00:15]} 2. d3 {[%emt 0:00:25]} f5 {[%emt 0:00:46]} 3. Nc3 {[%emt 0:00:39]} Nf6 {[%emt 0:01:07]} 4. Bg5 Be7 5. g3 {[%emt 0:01:16]} h6 {[%emt 0:00:51]} 6. Bxf6 {[%emt 0:00:43]} Bxf6 {[%emt 0:00:45]} 7. Bg2 {[%emt 0:00:10]} O-O {[%emt 0:04:34]} 8. Qc2 {[%emt 0:01:07]} Nc6 {[%emt 0:05:49]} 9. Nf3 {[%emt 0:00:20]} d6 {[%emt 0:02:02]} 10. O-O {[%emt 0:01:46]} g5 {[%emt 0:04:56]} 11. a3 {[%emt 0:07:11]} a5 {[%emt 0:00:16]} 12. Rad1 {[%emt 0:00:35]} Qe7 {[%emt 0:02:53]} 13. Nd5 {[%emt 0:01:06]} Qg7 {[%emt 0:00:22]} 14. Nxf6+ {[%emt 0:01:25]} Qxf6 {[%emt 0:00:13]} 15. Rb1 {[%emt 0:01:06]} Rf7 {[%emt 0:02:36]} 16. b4 {[%emt 0:02:50]} Rg7 {[%emt 0:04:10]} 17. b5 {[%emt 0:01:56]} Ne7 {[%emt 0:00:53]} 18. a4 {[%emt 0:03:26]} h5 {[%emt 0:03:26]} 19. e3 {[%emt 0:01:46]} h4 {[%emt 0:02:07]} 20. Nd2 {[%emt 0:01:44]} Ng6 {[%emt 0:02:00]} 21. Qb2 {[%emt 0:02:40]} f4 {[%emt 0:01:52]} 22. Ne4 {[%emt 0:00:49]} Qe7 {[%emt 0:00:25]} 23. exf4 {[%emt 0:01:14]} gxf4 {[%emt 0:00:29]} 24. Rbc1 {[%emt 0:01:32]} Bf5 {[%emt 0:02:16]} 25. Qe2 {[%emt 0:01:50]} Rf8 {[%emt 0:02:12]} 26. g4 {[%emt 0:04:44]} Be6 {[%emt 0:03:08]} 27. h3 {[%emt 0:01:12]} f3 {[%emt 0:06:16]} 28. Bxf3 {[%emt 0:05:16]} Nf4 {[%emt 0:00:04]} 29. Qd1 {[%emt 0:00:07]} Nxh3+ {[%emt 0:00:14]} 30. Kh2 {[%emt 0:00:19]} Nf4 {[%emt 0:05:54]} 31. Bg2 {[%emt 0:01:16]} Nxg2 {[%emt 0:00:14]} 32. Kxg2 {[%emt 0:00:29]} Bxg4 0-1

[Event "Czech Youth U14 Girls 2024"]
[Site "Kouty nad Desnou"]
[Date "2024.03.12"]
[Round "5.9"]
[White "Archlebova, Eva"]
[Black "Strazhnyk, Viktoriia"]
[Result "0-1"]
[ECO "B23"]
[WhiteElo "1438"]
[BlackElo "1570"]
[Annotator "NA RC"]
[PlyCount "146"]
[EventDate "2024.03.10"]
[EventType "swiss"]
[EventCountry "CZE"]
[SourceTitle "playchess.com"]
[Source "ChessBase"]
[SourceQuality "1"]
[TimeControl "40/5400+30:1800+30"]

1. e4 {[%emt 0:00:07]} c5 {[%emt 0:00:02]} 2. Nc3 {[%emt 0:01:40]} e6 {[%emt 0:00:16]} 3. d3 {[%emt 0:02:07]} Nc6 {[%emt 0:01:18]} 4. Nge2 {[%emt 0:01:36]} d6 {[%emt 0:00:26]} 5. g3 {[%emt 0:01:08]} Nf6 {[%emt 0:02:09]} 6. Bg2 {[%emt 0:01:54]} Be7 {[%emt 0:02:56]} 7. O-O {[%emt 0:02:35]} O-O {[%emt 0:03:02]} 8. Bd2 {[%emt 0:04:36]} Nd7 {[%emt 0:03:25]} 9. Nf4 {[%emt 0:01:54]} Bg5 {[%emt 0:04:01]} 10. Nh3 {[%emt 0:01:15]} Bxd2 {[%emt 0:10:53]} 11. Qxd2 {[%emt 0:00:07]} Nb6 {[%emt 0:07:04]} 12. Ng5 {[%emt 0:00:26]} h6 {[%emt 0:00:50]} 13. Nf3 {[%emt 0:00:18]} e5 {[%emt 0:04:00]} 14. a3 {[%emt 0:01:46]} f5 {[%emt 0:02:26]} 15. Rae1 {[%emt 0:07:41]} f4 {[%emt 0:02:49]} 16. b3 {[%emt 0:07:37]} Bg4 {[%emt 0:01:02]} 17. h3 {[%emt 0:06:19]} Bxf3 {[%emt 0:01:51]} 18. Bxf3 {[%emt 0:01:08]} fxg3 {[%emt 0:00:56]} 19. fxg3 {[%emt 0:00:26]} Nd4 {[%emt 0:00:40]} 20. Qd1 {[%emt 0:03:55]} Nxf3+ {[%emt 0:05:10]} 21. Rxf3 {[%emt 0:00:10]} Rxf3 {[%emt 0:00:35]} 22. Qxf3 {[%emt 0:00:04]} Qg5 {[%emt 0:01:20]} 23. Nd5 {[%emt 0:02:09]} Nxd5 {[%emt 0:00:33]} 24. exd5 {[%emt 0:00:06]} Rf8 {[%emt 0:01:10]} 25. Qe3 {[%emt 0:03:53]} Qf5 {[%emt 0:01:35]} 26. g4 {[%emt 0:02:54]} Qf4 {[%emt 0:01:16]} 27. Qxf4 {[%emt 0:03:48]} Rxf4 {[%emt 0:00:24]} 28. Re4 {[%emt 0:00:38]} Kf7 {[%emt 0:02:26]} 29. Kg2 {[%emt 0:02:12]} Kf6 {[%emt 0:01:08]} 30. c3 {[%emt 0:14:59]} Kg5 {[%emt 0:05:49]} 31. Kg3 {[%emt 0:00:58]} Rf1 {[%emt 0:00:41]} 32. b4 {[%emt 0:00:57]} b6 {[%emt 0:10:46]} 33. bxc5 {[%emt 0:01:45]} bxc5 {[%emt 0:02:26]} 34. d4 {[%emt 0:01:54]} cxd4 {[%emt 0:01:29]} 35. cxd4 {[%emt 0:00:05]} Ra1 {[%emt 0:02:46]} 36. dxe5 {[%emt 0:03:01]} Rxa3+ {[%emt 0:00:47]} 37. Kf2 {[%emt 0:00:19]} dxe5 {[%emt 0:00:59]} 38. Rxe5+ {[%emt 0:00:27]} Kf6 {[%emt 0:01:29]} 39. Rf5+ {[%emt 0:09:42]} Ke7 {[%emt 0:01:18]} 40. g5 {[%emt 0:00:50]} hxg5 {[%emt 0:02:26]} 41. Rxg5 {[%emt 0:30:06]} Kf6 {[%emt 0:31:51]} 42. h4 {[%emt 0:00:54]} Rh3 {[%emt 0:00:12]} 43. d6 {[%emt 0:03:31]} Rxh4 {[%emt 0:01:19]} 44. Rd5 {[%emt 0:00:42]} Rh8 {[%emt 0:00:39]} 45. Ra5 {[%emt 0:04:28]} Rd8 {[%emt 0:02:48]} 46. Ra6 {[%emt 0:00:33]} Rd7 {[%emt 0:00:15]} 47. Ke3 {[%emt 0:00:58]} Ke5 {[%emt 0:00:43]} 48. Ra5+ {[%emt 0:00:40]} Kxd6 {[%emt 0:00:19]} 49. Ra6+ {[%emt 0:00:43]} Kc5 {[%emt 0:00:17]} 50. Ra5+ {[%emt 0:01:22]} Kb4 {[%emt 0:00:46]} 51. Rg5 a5 {[%emt 0:00:53]} 52. Rg4+ {[%emt 0:01:40]} Kb3 {[%emt 0:00:30]} 53. Rg5 {[%emt 0:01:01]} Ra7 {[%emt 0:00:22]} 54. Kd2 {[%emt 0:00:16]} a4 {[%emt 0:00:38]} 55. Kc1 {[%emt 0:00:24]} Kc3 {[%emt 0:03:23]} 56. Rg3+ {[%emt 0:00:31]} Kd4 {[%emt 0:00:14]} 57. Kb2 {[%emt 0:00:53]} a3+ {[%emt 0:00:32]} 58. Ka2 {[%emt 0:00:09]} Ke4 {[%emt 0:00:16]} 59. Rg6 {[%emt 0:00:38]} Kf5 {[%emt 0:00:25]} 60. Rb6 {[%emt 0:00:00]} g5 {[%emt 0:00:00]} 61. Rb5+ {[%emt 0:00:00]} Kg4 {[%emt 0:00:00]} 62. Rb4+ {[%emt 0:00:00]} Kh3 {[%emt 0:00:00]} 63. Rb3+ {[%emt 0:00:00]} Kh4 {[%emt 0:00:00]} 64. Rb4+ {[%emt 0:00:00]} g4 {[%emt 0:00:00]} 65. Rc4 {[%emt 0:00:00]} Kh3 {[%emt 0:00:00]} 66. Rc3+ {[%emt 0:00:00]} g3 {[%emt 0:00:00]} 67. Rd3 {[%emt 0:00:00]} Kh2 {[%emt 0:00:00]} 68. Rd2+ {[%emt 0:00:00]} g2 {[%emt 0:00:00]} 69. Rc2 {[%emt 0:00:00]} Kh1 {[%emt 0:00:00]} 70. Rc1+ {[%emt 0:00:00]} g1=Q {[%emt 0:00:00]} 71. Rxg1+ {[%emt 0:00:00]} Kxg1 {[%emt 0:00:00]} 72. Kb1 {[%emt 0:00:00]} a2+ {[%emt 0:00:00]} 73. Ka1 {[%emt 0:00:00]} Kh2 {[%emt 0:00:00]} 0-1